fUST/lending_fUST_20240807
["ID","MTS","AMOUNT","RATE_DAILY","PERIOD"]
[334345439,1722995447645,-540.88,0.00032876,14]
[334345440,1722995447654,-500.0,0.00032876,14]
[334345441,1722995447664,-500.0,0.00032876,14]
[334345442,1722995447673,-500.0,0.00032876,14]
[334345444,1722995447683,-500.0,0.00032876,14]
[334345446,1722995447694,-500.0,0.00032876,14]
[334345448,1722995447703,-506.87029635,0.00032876,14]
[334345450,1722995447713,-500.0,0.00032876,14]
[334345452,1722995447722,-708.74,0.00032876,14]
[334345454,1722995447732,-10301.84,0.00032876,14]
[334345456,1722995447742,-500.0,0.00032876,14]
[334345458,1722995447752,-153.616701,0.00032876,7]
[334345460,1722995447761,-850.87,0.00032876,14]
[334345461,1722995447771,-500.0,0.00032876,14]
[334345463,1722995447780,-500.0,0.00032876,14]
[334345465,1722995447790,-3704.5,0.00032876,14]
[334345467,1722995447799,-507.87900437,0.00032876,14]
[334345469,1722995447809,-500.0,0.00032876,14]
[334345471,1722995447819,-500.0,0.00032876,14]
[334345473,1722995447835,-500.0,0.00032876,14]
[334345475,1722995447844,-500.0,0.00032876,14]
[334345477,1722995447853,-716.53,0.00032876,14]
[334345479,1722995447862,-500.74727804,0.00032876,14]
[334345481,1722995447871,-1195.42,0.00032876,14]
[334345483,1722995447880,-500.0,0.00032876,14]
[334345485,1722995447889,-1231.2,0.00032876,14]
[334345487,1722995447898,-1200.37,0.00032876,14]
[334345489,1722995447907,-688.05,0.00032876,14]
[334345491,1722995447916,-500.0,0.00032876,14]
[334345493,1722995447925,-947.43,0.00032876,14]
[334345495,1722995447934,-654.18,0.00032876,14]
[334345497,1722995447943,-500.0,0.00032876,14]
[334345499,1722995447953,-500.0,0.00032876,14]
[334345500,1722995447963,-2574.99,0.00032876,14]
[334345502,1722995447972,-1161.26,0.00032876,14]
[334345504,1722995447981,-511.62489852,0.00032876,14]
[334345506,1722995447990,-1266.18,0.00032876,14]
[334345509,1722995448001,-1047.76,0.00032876,14]
[334345511,1722995448011,-505.39,0.00032876,14]
[334345513,1722995448021,-690.92,0.00032876,14]
[334345515,1722995448031,-500.0,0.00032876,14]
[334345517,1722995448041,-1609.67,0.00032876,14]
[334345519,1722995448051,-597.47,0.00032876,14]
[334345521,1722995448061,-500.0,0.00032876,14]
[334345523,1722995448071,-1459.28,0.00032876,14]
[334345525,1722995448086,-500.0,0.00032876,14]
[334345527,1722995448096,-1548.6,0.00032876,14]
[334345529,1722995448107,-12494.15,0.00032876,14]
[334345531,1722995448120,-822.8,0.00032876,14]
[334345532,1722995448129,-1709.32,0.00032876,14]
[334345534,1722995448139,-500.0,0.00032876,14]
[334345536,1722995448148,-2727.64,0.00032876,14]
[334345538,1722995448159,-445.530589,0.00032876,7]
[334345540,1722995448169,-500.0,0.00032876,14]
[334345542,1722995448179,-445.530589,0.00032876,7]
[334345544,1722995448189,-445.530589,0.00032876,7]
[334345546,1722995448199,-3793.95,0.00032876,14]
[334345548,1722995448208,-445.530589,0.00032876,7]
[334345550,1722995448218,-506.09903468,0.00032876,14]
[334345552,1722995448227,-883.41,0.00032876,14]
[334345554,1722995448237,-151.0,0.00032876,7]
[334345556,1722995448247,-151.0,0.00032876,7]
[334345558,1722995448257,-2668.44,0.00032876,14]
[334345560,1722995448266,-151.0,0.00032876,7]
[334345562,1722995448275,-151.0,0.00032876,7]
[334345564,1722995448285,-2775.89,0.00032876,14]
[334345566,1722995448294,-2068.62,0.00032876,14]
[334345568,1722995448304,-16193.21,0.00032876,14]
[334345570,1722995448314,-445.530589,0.00032876,7]
[334345572,1722995448323,-445.530589,0.00032876,7]
[334345574,1722995448339,-445.530589,0.00032876,7]
[334345576,1722995448349,-445.530589,0.00032876,7]
[334345578,1722995448360,-500.0,0.00032876,14]
[334345580,1722995448369,-4818.4,0.00032876,14]
[334345582,1722995448379,-872.31,0.00032876,14]
[334345584,1722995448389,-1160.95,0.00032876,14]
[334345586,1722995448399,-500.0,0.00032876,14]
[334345588,1722995448410,-500.0,0.00032876,14]
[334345590,1722995448420,-501.09,0.00032876,14]
[334345592,1722995448430,-500.0,0.00032876,14]
[334345594,1722995448441,-500.0,0.00032876,14]
[334345596,1722995448452,-501.03442217,0.00032876,14]
[334345598,1722995448462,-3649.46,0.00032876,14]
[334345600,1722995448472,-500.0,0.00032876,14]
[334345602,1722995448481,-3184.0,0.00032876,14]
[334345604,1722995448491,-500.0,0.00032876,14]
[334345606,1722995448500,-2090.35,0.00032876,14]
[334345608,1722995448510,-1099.84,0.00032876,14]
[334345610,1722995448519,-500.0,0.00032876,14]
[334345612,1722995448529,-514.53378755,0.00032876,14]
[334345614,1722995448539,-1771.04,0.00032876,14]
[334345616,1722995448548,-500.0,0.00032876,14]
[334345618,1722995448558,-150.77481243,0.00032876,14]
[334345620,1722995448567,-237.24697113,0.00032876,14]
[334345622,1722995448577,-8350.51,0.00032876,14]
[334345624,1722995448592,-500.0,0.00032876,14]
[334345626,1722995448601,-631.13,0.00032876,14]
[334345628,1722995448611,-850.5,0.00032876,14]
[334345630,1722995448622,-1128.37,0.00032876,14]
[334345632,1722995448631,-2173.27,0.00032876,14]
[334345634,1722995448640,-2984.24,0.00032876,14]
[334345636,1722995448650,-500.0,0.00032876,14]
[334345638,1722995448660,-2404.48,0.00032876,14]
[334345640,1722995448670,-5313.86,0.00032876,14]
[334345642,1722995448679,-2536.16,0.00032876,14]
[334345644,1722995448689,-500.0,0.00032876,14]
[334345646,1722995448699,-1019.89,0.00032876,14]
[334345648,1722995448709,-500.0,0.00032876,14]
[334345650,1722995448718,-168.85141892,0.00032876,14]
[334345652,1722995448733,-331.14858108,0.00032876,14]
[334345654,1722995448743,-500.97996873,0.00032876,14]
[334345656,1722995448753,-1600.7,0.00032876,14]
[334345658,1722995448763,-1457.72,0.00032876,14]
[334345660,1722995448773,-123.4911421,0.00032876,14]
[334345668,1722995448846,-91.95482314,0.00032876,14]
[334345853,1722995450807,273.37336231,0.00027,120]
[334350938,1722995505606,179.53037,0.00014247,2]
[334367385,1722996227626,-2753.0,0.000142,2]
[334367386,1722996227651,-300.0,0.00014246,2]
[334367387,1722996227674,-159.483369,0.00014247,2]
[334367388,1722996227697,-10018.877531,0.00014247,2]
[334367392,1722996307960,285.34,0.0001401,2]
[334367395,1722996330574,-300.0,0.00014246,2]
[334367396,1722996330597,-3388.7144,0.00014247,2]
[334367397,1722996356537,13514.28018513,0.0001401,2]
[334367398,1722996362904,1770.39986791,0.0001401,2]
[334367399,1722996369395,1673.39361585,0.0001401,2]
[334367402,1722996441143,-197.88286229,0.00015832,2]
[334367403,1722996447099,-591.52520231,0.00015832,2]
[334367404,1722996447126,-250.0,0.00015908,2]
[334367405,1722996447152,-250.0,0.00015952,2]
[334367406,1722996447176,-250.0,0.00015995,2]
[334367407,1722996447198,-250.0,0.00016039,2]
[334367408,1722996447221,-250.0,0.00016083,2]
[334367409,1722996447243,-655.82082419,0.00016095,2]
[334367410,1722996447267,-250.0,0.00016126,2]
[334367411,1722996447305,-250.0,0.0001617,2]
[334367412,1722996447328,-250.0,0.00016213,2]
[334367413,1722996447351,-250.0,0.00016257,2]
[334367414,1722996447375,-250.0,0.00016301,2]
[334367415,1722996447398,-1011.45365315,0.00016309,2]
[334367416,1722996447428,-250.0,0.00016344,2]
[334367417,1722996447451,-190.11662855,0.00016347,2]
[334367418,1722996447478,-250.0,0.00016388,2]
[334367419,1722996447504,-250.0,0.00016431,2]
[334367420,1722996447530,-250.0,0.00016475,2]
[334367421,1722996447554,-300.0,0.00016518,2]
[334367422,1722996447578,-250.0,0.00016519,2]
[334367423,1722996447599,-154.79103211,0.00016532,2]
[334367424,1722996447625,-250.0,0.00016562,2]
[334367425,1722996447661,-250.0,0.00016606,2]
[334367426,1722996447688,-250.0,0.0001665,2]
[334367427,1722996447713,-250.0,0.00016693,2]
[334367428,1722996447738,-250.0,0.00016737,2]
[334367429,1722996447761,-533.92328189,0.00016982,2]
[334367430,1722996447790,-154.63660398,0.00016982,2]
[334367431,1722996447815,-279.496808,0.00017288,2]
[334367432,1722996447838,-62.18583477,0.0001739,2]
[334367433,1722996447869,-710.11399839,0.0001739,2]
[334367434,1722996453112,-200.62713417,0.00016309,2]
[334367436,1722996482561,241.15921738,9.9e-05,2]
[334367437,1722996503550,3609.70197902,0.00012,2]
[334367438,1722996506791,808.47195201,0.00012,2]
[334367439,1722996512765,4713.18767291,9.9e-05,2]
[334367440,1722996520639,3602.54637084,9.9e-05,2]
[334367442,1722996534196,1496.2822646,9.9e-05,2]
[334367443,1722996538619,179.53037,0.00014247,2]
[334367444,1722996544825,404.87698079,9.9e-05,2]
[334367445,1722996546090,2109.55666342,9.9e-05,2]
[334367446,1722996546120,-154.63660398,0.00016347,2]
[334367447,1722996546140,-154.79103211,0.00016532,2]
[334367448,1722996546160,-364.34490233,0.00016532,2]
[334367449,1722996546179,-189.2805445,0.00016778,2]
[334367450,1722996546200,-500.0,0.00016981,2]
[334367451,1722996546221,-500.0,0.00016981,2]
[334367452,1722996546241,-500.0,0.00016981,2]
[334367453,1722996546261,-237.31256992,0.00016981,2]
[334367454,1722996546281,-500.0,0.00016981,2]
[334367455,1722996546302,-500.0,0.00016981,2]
[334367456,1722996546322,-500.0,0.00016981,2]
[334367457,1722996546342,-252.64896292,0.00016981,2]
[334367458,1722996546365,-500.0,0.00016981,2]
[334367459,1722996546387,-500.0,0.00016981,2]
[334367460,1722996546408,-500.0,0.00016981,2]
[334367461,1722996546430,-500.0,0.00016981,2]
[334367462,1722996546452,-500.0,0.00016981,2]
[334367463,1722996546476,-500.0,0.00016981,2]
[334367464,1722996546497,-500.0,0.00016981,2]
[334367465,1722996546519,-500.0,0.00016981,2]
[334367466,1722996546541,-500.0,0.00016981,2]
[334367467,1722996546563,-400.0,0.00016981,2]
[334367468,1722996546583,-499.69815257,0.00016981,2]
[334367469,1722996546737,179.80471899,9.9e-05,2]
[334367470,1722996549116,-0.30184743,0.00016981,2]
[334367471,1722996549139,-500.0,0.00016981,2]
[334367472,1722996549161,-500.0,0.00016981,2]
[334367473,1722996549182,-500.0,0.00016981,2]
[334367474,1722996549204,-222.13920766,0.00016981,2]
[334367475,1722996552282,-154.63660398,0.00016309,2]
[334367476,1722996552304,-277.86079234,0.00016981,2]
[334367477,1722996552326,-500.0,0.00016981,2]
[334367478,1722996552347,-218.38367924,0.00016982,2]
[334367479,1722996552370,-156.94756901,0.00016982,2]
[334367480,1722996552391,-8234.7023885,0.00016982,2]
[334367481,1722996552977,155.03853107,9.9e-05,2]
[334367482,1722996559897,404.87698079,9.9e-05,2]
[334367483,1722996560413,3786.9486369,9.9e-05,2]
[334367484,1722996560855,11980.62385084,9.9e-05,2]
[334367485,1722996568131,-2227.70016684,0.0001739,2]
[334367486,1722996568155,-24900.0,0.0001744,2]
[334367487,1722996568184,-667.49470401,0.00018725,2]
[334367488,1722996568205,-543.24550065,0.00018825,2]
[334367489,1722996568227,-320.33120374,0.00018845,2]
[334367490,1722996568251,-3719.30947172,0.00019177,2]
[334367491,1722996568273,-156.61103376,0.00019451,2]
[334367492,1722996568296,-910.95872373,0.00019451,2]
[334367493,1722996568318,-403.86895423,0.00019451,2]
[334367494,1722996568339,-2849.31423163,0.00019451,2]
[334367495,1722996568364,-519.78337595,0.00019451,2]
[334367496,1722996568387,-524.94205866,0.00019477,2]
[334367497,1722996568409,-1091.57771247,0.00019477,2]
[334367498,1722996568432,-628.03720435,0.00019547,2]
[334367499,1722996568453,-174.58377467,0.00019547,2]
[334367500,1722996568479,-210.67359257,0.00019999,2]
[334367501,1722996568501,-201.67607947,0.00019999,2]
[334367502,1722996568524,-165.53506923,0.00019999,2]
[334367503,1722996568545,-154.93119163,0.00019999,2]
[334367504,1722996568566,-156.40122441,0.0002,2]
[334367505,1722996568587,-254.47099685,0.0002,2]
[334367506,1722996568612,-154.97310243,0.0002,2]
[334367507,1722996568633,-601.0405866,0.00020721,2]
[334367508,1722996568654,-399.00479548,0.00020721,2]
[334367509,1722996568675,-294.18278188,0.00020721,2]
[334367510,1722996568697,-269.73277317,0.00021048,2]
[334367511,1722996568718,-470.98761369,0.00021048,2]
[334367512,1722996568742,-667.49470401,0.00021398,2]
[334367513,1722996568777,-470.98761369,0.0002142,2]
[334367514,1722996568800,-313.99716917,0.00021542,2]
[334367515,1722996568823,-301.08428184,0.00021591,2]
[334367516,1722996568847,-522.46575535,0.00021599,2]
[334367517,1722996568872,-495.39583471,0.00021632,2]
[334367518,1722996568895,-176.57670412,0.00021805,2]
[334367519,1722996568918,-205.58193422,0.00021916,2]
[334367520,1722996568940,-52.57163053,0.00023232,2]
[334367521,1722996577473,404.20375246,0.00012,2]
[334367522,1722996577499,3198.34261838,0.00012,2]
[334367532,1722996580930,4713.18767291,0.00012,2]
[334367536,1722996582837,3000.0,0.00015513,2]
[334367537,1722996586358,16292.9666897,0.00012,2]
[334367538,1722996586505,2441.85244574,0.00012,2]
[334367539,1722996590414,3786.9486369,9.9e-05,2]
[334367540,1722996594446,1547.54327277,0.00012,2]
[334367541,1722996596614,364.34490233,0.00012,2]
[334367542,1722996598596,2109.55666342,0.00012,2]
[334367543,1722996607315,522.90304333,0.00012,2]
[334367544,1722996608371,273.37336231,9.9e-05,2]
[334367545,1722996613616,218.38367924,0.00012,2]
[334367546,1722996616783,273.37336231,9.9e-05,2]
[334367547,1722996617201,313.99716917,0.00012,2]
[334367548,1722996618012,705.33780834,0.00012,2]
[334367549,1722996618046,361.32181258,0.00012,2]
[334367550,1722996618118,519.78337595,0.00012,2]
[334367551,1722996619019,954.48506951,0.00015,2]
[334367552,1722996619473,1022.35007745,0.00015,2]
[334367553,1722996621202,403.68020821,0.00012,2]
[334367554,1722996622449,188.2335741,0.00012,2]
[334367555,1722996622484,180.68218157,0.00012,2]
[334367556,1722996622515,174.71279537,0.00012,2]
[334367557,1722996622678,155.23838174,0.00014545,2]
[334367558,1722996624217,287.82937614,0.00014545,2]
[334367559,1722996625031,231.70076499,0.00014545,2]
[334367560,1722996625310,196.50630212,0.00014545,2]
[334367561,1722996625379,194.5599409,0.00014545,2]
[334367562,1722996625504,273.37336231,9.9e-05,2]
[334367563,1722996625536,183.07130814,0.00014545,2]
[334367564,1722996625567,157.93596259,0.00014545,2]
[334367565,1722996625844,209.82972855,0.00014545,2]
[334367566,1722996625973,272.07377262,0.00014545,2]
[334367567,1722996628340,301.32755103,0.00012,2]
[334367568,1722996628586,413.99267103,0.00012,2]
[334367569,1722996629275,4713.18767291,0.00012,2]
[334367570,1722996629305,548.91569179,0.00012,2]
[334367571,1722996629574,845.28864353,0.00012,2]
[334367572,1722996629893,641.9240163,0.00012,2]
[334367573,1722996631297,499.41712781,0.00012,2]
[334367574,1722996631328,492.373335,0.00015,2]
[334367575,1722996631368,8051.9659148,0.00014545,2]
[334367576,1722996631435,156.63892832,0.00014545,2]
[334367603,1722996632625,189.82369411,0.00014545,2]
[334367604,1722996633080,-300.03788272,0.00019547,2]
[334367605,1722996633466,273.37336231,9.9e-05,2]
[334367666,1722996640505,-170.00369389,0.00019547,2]
[334367667,1722996640515,-428.66788403,0.0002,2]
[334367668,1722996640526,-667.49470401,0.0002407,2]
[334367669,1722996640535,-279.496808,0.00025932,2]
[334367670,1722996640545,-1363.69574407,0.00026589,2]
[334367671,1722996640554,-667.49470401,0.00026743,2]
[334367672,1722996640564,-667.49470401,0.00029416,2]
[334367673,1722996640575,-4959.0762557,0.00029479,2]
[334367674,1722996640585,-4959.0762557,0.00029719,2]
[334367675,1722996640594,-672.5389,0.00029834,30]
[334367676,1722996640604,-4959.0762557,0.00029984,2]
[334367677,1722996640614,-151.0,0.0003,120]
[334367678,1722996640623,-4959.0762557,0.00030168,2]
[334367679,1722996640632,-38301.5993539,0.00030385,4]
[334367680,1722996640644,-4959.0762557,0.00030425,2]
[334367681,1722996640653,-4000.0,0.0003068,30]
[334367682,1722996640663,-4959.0762557,0.00030852,2]
[334367683,1722996640672,-4959.0762557,0.00031213,2]
[334367684,1722996640683,-1060.45141812,0.00031407,2]
[334367685,1722996640692,-4959.0762557,0.00031503,2]
[334367686,1722996640702,-198.738877,0.00031507,120]
[334367687,1722996640711,-384.65,0.00031535,3]
[334367688,1722996640721,-577.0,0.00031535,3]
[334367689,1722996640730,-4959.0762557,0.00031545,2]
[334367690,1722996640739,-192.33,0.00031739,3]
[334367691,1722996640749,-1060.45141808,0.00031749,2]
[334367692,1722996640758,-261.3825,0.00031834,30]
[334367693,1722996640769,-726.77,0.00031985,3]
[334367694,1722996640778,-4959.0762557,0.00031995,2]
[334367695,1722996640788,-667.49470401,0.00032089,2]
[334367696,1722996640797,-1060.45141808,0.00032092,2]
[334367697,1722996640807,-179.92758834,0.00032199,2]
[334367698,1722996640818,-312.63588854,0.00032199,2]
[334367699,1722996640828,-552.85380409,0.00032199,2]
[334367700,1722996640837,-500.0,0.00032199,2]
[334367701,1722996640846,-569.77997536,0.00032199,2]
[334367702,1722996640856,-500.0,0.00032199,2]
[334367703,1722996640865,-500.0,0.00032199,2]
[334367704,1722996640875,-155.148942,0.000322,10]
[334367705,1722996640884,-3000.0,0.000322,11]
[334367706,1722996640894,-38301.5993539,0.000322,4]
[334367707,1722996640904,-3000.0,0.0003221,11]
[334367708,1722996640913,-3000.0,0.0003222,11]
[334367709,1722996640923,-3000.0,0.0003223,11]
[334367710,1722996640932,-3000.0,0.0003224,11]
[334367711,1722996640941,-3000.0,0.0003225,11]
[334367712,1722996640951,-3000.0,0.0003226,11]
[334367713,1722996640960,-3000.0,0.0003227,11]
[334367714,1722996640969,-4959.0762557,0.00032271,2]
[334367715,1722996640979,-3000.0,0.0003228,11]
[334367716,1722996640989,-3000.0,0.0003229,11]
[334367717,1722996640998,-3000.0,0.000323,11]
[334367718,1722996641007,-3000.0,0.0003231,11]
[334367719,1722996641017,-3000.0,0.0003232,11]
[334367720,1722996641026,-3000.0,0.0003233,11]
[334367721,1722996641036,-4959.0762557,0.00032336,2]
[334367722,1722996641045,-3000.0,0.0003234,11]
[334367723,1722996641055,-3000.0,0.0003235,11]
[334367724,1722996641064,-3000.0,0.0003236,11]
[334367725,1722996641073,-38301.5993539,0.0003236,4]
[334367726,1722996641083,-3000.0,0.0003237,11]
[334367727,1722996641092,-3000.0,0.0003238,11]
[334367728,1722996641102,-3000.0,0.0003239,11]
[334367729,1722996641111,-150.112233,0.000324,9]
[334367730,1722996641121,-3000.0,0.000324,11]
[334367731,1722996641131,-3000.0,0.0003241,11]
[334367732,1722996641140,-3000.0,0.0003242,12]
[334367733,1722996641150,-3000.0,0.0003243,12]
[334367734,1722996641160,-1060.45141808,0.00032434,2]
[334367735,1722996641169,-3000.0,0.0003244,12]
[334367736,1722996641178,-150.55785057,0.00032448,2]
[334367737,1722996641187,-3000.0,0.0003245,12]
[334367738,1722996641196,-3000.0,0.0003246,12]
[334367739,1722996641205,-3000.0,0.0003247,12]
[334367740,1722996641214,-3000.0,0.0003248,12]
[334367741,1722996641223,-3000.0,0.0003249,12]
[334367742,1722996641232,-271.4386735,0.00032493,2]
[334367743,1722996641242,-271.4386735,0.00032493,2]
[334367744,1722996641251,-271.4386735,0.00032493,2]
[334367745,1722996641261,-271.4386735,0.00032493,2]
[334367746,1722996641271,-271.4386735,0.00032493,2]
[334367747,1722996641281,-271.4386735,0.00032493,2]
[334367748,1722996641290,-271.4386735,0.00032493,2]
[334367749,1722996641300,-271.4386735,0.00032493,2]
[334367750,1722996641309,-271.4386735,0.00032493,2]
[334367751,1722996641318,-271.4386735,0.00032493,2]
[334367752,1722996641327,-271.4386735,0.00032493,2]
[334367753,1722996641337,-150.112233,0.000325,7]
[334367754,1722996641347,-3000.0,0.000325,12]
[334367755,1722996641355,-38301.5993539,0.000325,4]
[334367756,1722996641365,-3000.0,0.0003251,12]
[334367757,1722996641374,-3000.0,0.0003252,12]
[334367758,1722996641383,-3000.0,0.0003253,12]
[334367759,1722996641393,-3000.0,0.0003254,12]
[334367760,1722996641403,-3000.0,0.0003255,12]
[334367761,1722996641412,-3000.0,0.0003256,12]
[334367762,1722996641421,-3000.0,0.0003257,12]
[334367763,1722996641431,-500.0,0.00032602,7]
[334367764,1722996641440,-4959.0762561,0.00032666,2]
[334367765,1722996641449,-2000.0,0.00032676,2]
[334367766,1722996641459,-4261.47873244,0.0003268,30]
[334367767,1722996641468,-150.112233,0.000327,9]
[334367768,1722996641477,-38301.5993539,0.00032766,4]
[334367769,1722996641489,-963.372375,0.0003277,2]
[334367770,1722996641500,-38074.93847948,0.00032776,5]
[334367771,1722996641510,-1060.45141808,0.00032776,2]
[334367772,1722996641519,-150.112233,0.000328,10]
[334367773,1722996641528,-500.0,0.00032864,7]
[334367774,1722996641538,-500.0,0.00032865,7]
[334367775,1722996641547,-539.88359969,0.00032865,7]
[334367776,1722996641556,-5658.31705331,0.00032866,4]
[334367777,1722996641603,181.56267043,0.00014545,2]
[334367778,1722996642102,849.56796357,0.00014545,2]
[334367779,1722996642162,269.66609186,0.00014545,2]
[334367780,1722996642208,273.37336231,9.9e-05,2]
[334367802,1722996643779,-500.0,0.00030167,2]
[334367803,1722996643790,-500.0,0.00030167,2]
[334367804,1722996643800,-500.0,0.00030167,2]
[334367805,1722996643810,-500.0,0.00030167,2]
[334367806,1722996643819,-500.0,0.00030167,2]
[334367807,1722996643829,-500.0,0.00030167,2]
[334367808,1722996643839,-500.0,0.00030167,2]
[334367809,1722996643848,-415.1930123,0.00030167,2]
[334367810,1722996643858,-500.0,0.00032199,2]
[334367811,1722996643867,-500.0,0.00032199,2]
[334367812,1722996643877,-70944.88165439,0.00032866,4]
[334367813,1722996643887,-156.0,0.0003287,28]
[334367814,1722996643897,-200.0,0.00032873,5]
[334367815,1722996643906,-1306.86193171,0.00032876,21]
[334367816,1722996643916,-500.69732933,0.00032876,2]
[334367817,1722996643926,-497.17686921,0.00032876,14]
[334367818,1722996643935,-500.0,0.00032876,14]
[334367819,1722996643945,-500.0,0.00032876,14]
[334367820,1722996643955,-500.0,0.00032876,14]
[334367821,1722996643965,-964.16,0.00032876,14]
[334367822,1722996643975,-500.0,0.00032876,14]
[334367823,1722996643984,-501.75133157,0.00032876,14]
[334367824,1722996643994,-500.0,0.00032876,14]
[334367825,1722996644004,-604.84,0.00032876,14]
[334367826,1722996644014,-2078.45,0.00032876,14]
[334367827,1722996644023,-502.31775371,0.00032876,14]
[334367828,1722996644033,-703.63,0.00032876,14]
[334367829,1722996644042,-911.24,0.00032876,14]
[334367830,1722996644052,-500.0,0.00032876,14]
[334367831,1722996644061,-500.0,0.00032876,14]
[334367832,1722996644071,-500.0,0.00032876,14]
[334367833,1722996644080,-500.0,0.00032876,10]
[334367834,1722996644089,-501.72817588,0.00032876,14]
[334367835,1722996644099,-2462.53,0.00032876,14]
[334367836,1722996644110,-304.84690658,0.00032876,14]
[334367837,1722996644121,-500.0,0.00032876,14]
[334367839,1722996644132,-500.0,0.00032876,14]
[334367841,1722996644141,-1757.88,0.00032876,14]
[334367843,1722996644152,-500.0,0.00032876,14]
[334367844,1722996644161,-500.0,0.00032876,14]
[334367845,1722996644170,-500.0,0.00032876,14]
[334367846,1722996644180,-338.00009204,0.00032876,14]
[334367847,1722996644190,-771.05,0.00032876,14]
[334367848,1722996644208,-803.23,0.00032876,14]
[334367849,1722996644218,-513.74835961,0.00032876,2]
[334367850,1722996644227,-1200.46,0.00032876,14]
[334367851,1722996644236,-500.0,0.00032876,14]
[334367852,1722996644246,-535.9,0.00032876,14]
[334367853,1722996644257,-500.0,0.00032876,14]
[334367855,1722996644266,-500.0,0.00032876,14]
[334367856,1722996644275,-500.0,0.00032876,14]
[334367858,1722996644285,-500.0,0.00032876,14]
[334367860,1722996644294,-500.0,0.00032876,14]
[334367861,1722996644304,-500.0,0.00032876,14]
[334367862,1722996644313,-825.27,0.00032876,14]
[334367863,1722996644322,-151.0,0.00032876,7]
[334367864,1722996644332,-500.0,0.00032876,14]
[334367865,1722996644341,-151.00000098,0.00032876,7]
[334367866,1722996644350,-500.0,0.00032876,14]
[334367867,1722996644360,-528.80456272,0.00032876,14]
[334367868,1722996644370,-503.11,0.00032876,14]
[334367869,1722996644380,-502.21277357,0.00032876,14]
[334367870,1722996644389,-501.83121288,0.00032876,14]
[334367871,1722996644399,-500.0,0.00032876,14]
[334367872,1722996644408,-1235.84,0.00032876,14]
[334367873,1722996644419,-262.31712598,0.00032876,14]
[334367874,1722996644430,-500.0,0.00032876,14]
[334367875,1722996644439,-500.0,0.00032876,14]
[334367876,1722996644459,-500.0,0.00032876,14]
[334367877,1722996644468,-500.5412421,0.00032876,14]
[334367878,1722996644478,-756.19,0.00032876,14]
[334367879,1722996644488,-501.92966641,0.00032876,14]
[334367880,1722996644499,-500.0,0.00032876,14]
[334367881,1722996644509,-646.2,0.00032876,14]
[334367882,1722996644519,-579.24,0.00032876,14]
[334367883,1722996644529,-500.0,0.00032876,14]
[334367884,1722996644538,-500.0,0.00032876,14]
[334367885,1722996644547,-736.94,0.00032876,14]
[334367886,1722996644557,-502.49650793,0.00032876,14]
[334367887,1722996644567,-500.0,0.00032876,14]
[334367888,1722996644577,-500.0,0.00032876,14]
[334367889,1722996644587,-682.15,0.00032876,14]
[334367890,1722996644597,-500.0,0.00032876,14]
[334367891,1722996644606,-500.0,0.00032876,14]
[334367892,1722996644619,-500.0,0.00032876,14]
[334367893,1722996644628,-2297.33,0.00032876,14]
[334367894,1722996644637,-501.78251023,0.00032876,14]
[334367895,1722996644648,-569.34,0.00032876,14]
[334367896,1722996644658,-500.0,0.00032876,14]
[334367897,1722996644668,-500.0,0.00032876,14]
[334367898,1722996644678,-718.28,0.00032876,14]
[334367899,1722996644687,-500.0,0.00032876,14]
[334367900,1722996644704,-151.0,0.00032876,7]
[334367901,1722996644714,-409.32467682,0.00032876,14]